bitfinex-derivatives/quotes_BTCF0:USTF0_20250411
["timestamp","ask_amount","ask_price","bid_price","bid_amount"]
[1744366633526,0.36098138,82558.0,82557.0,0.1858108]
[1744366633727,0.48219068,82558.0,82557.0,0.1858108]
[1744366635630,0.36098138,82558.0,82557.0,0.1858108]
[1744366635938,0.48219068,82558.0,82557.0,0.1858108]
[1744366636529,0.12139068,82558.0,82557.0,0.1858108]
[1744366638538,0.12139068,82558.0,82549.0,0.0328]
[1744366638539,0.0606105,82550.0,82549.0,0.1212225]
[1744366638938,0.1818341,82550.0,82549.0,0.1212225]
[1744366639333,0.3608,82554.0,82551.0,0.0606097]
[1744366639542,0.18199968,82558.0,82557.0,0.1212108]
[1744366639940,0.18199968,82558.0,82557.0,0.1205108]
[1744366640238,0.18199968,82558.0,82557.0,0.1855108]
[1744366641037,8.138e-05,82558.0,82557.0,0.1855108]
[1744366641535,0.12129068,82558.0,82557.0,0.1530108]
[1744366641841,0.12129068,82558.0,82557.0,0.0325]
[1744366642032,0.18609068,82558.0,82557.0,0.0325]
[1744366643441,0.18609068,82558.0,82557.0,0.1537108]
[1744366643645,0.1818338,82554.0,82553.0,0.0606074]
[1744366645044,0.2424441,82554.0,82553.0,0.2424256]
[1744366645439,0.0606054,82557.0,82556.0,0.1818168]
[1744366645837,0.0606454,82557.0,82556.0,0.1818168]
[1744366646542,0.1212181,82552.0,82551.0,0.2424373]
[1744366647940,0.0606083,82553.0,82549.0,0.0623]
[1744366648145,0.121221,82550.0,82549.0,0.2134322]
[1744366648640,0.186621,82550.0,82549.0,0.2134322]
[1744366648840,0.186621,82550.0,82549.0,0.2455322]
[1744366649541,0.186621,82550.0,82549.0,0.1243112]
[1744366650050,0.186621,82550.0,82549.0,0.0922112]
[1744366650242,0.186621,82550.0,82549.0,0.0316]
[1744366651146,0.186621,82550.0,82549.0,0.1528225]
[1744366652350,0.121221,82550.0,82549.0,0.1830225]
[1744366652550,0.4214081,82554.0,82553.0,0.1212166]
[1744366653150,0.4214081,82554.0,82553.0,0.1846166]
[1744366653850,0.4877081,82554.0,82553.0,0.1846166]
[1744366655847,0.4877081,82554.0,82552.0,0.060609]
[1744366655848,0.1818331,82551.0,82550.0,0.0606104]
[1744366656255,0.1818331,82551.0,82550.0,0.1818314]
[1744366656449,0.121218,82553.0,82552.0,0.1818256]
[1744366656751,0.121258,82553.0,82552.0,0.1818256]
[1744366657351,0.154458,82553.0,82552.0,0.1818256]
[1744366658254,4e-05,82553.0,82552.0,0.1818256]
[1744366658846,0.1212566,82553.0,82552.0,0.1818256]
[1744366659248,4e-05,82553.0,82552.0,0.1818256]
[1744366659653,0.1212152,82554.0,82553.0,0.1212166]
[1744366660052,0.1212152,82554.0,82553.0,0.1519166]
[1744366660458,0.1843152,82554.0,82553.0,0.1519166]
[1744366663257,0.1212152,82554.0,82553.0,0.1519166]
[1744366663857,0.1542152,82554.0,82553.0,0.0307]
[1744366664159,0.1871152,82554.0,82553.0,0.0307]
[1744366664454,0.1871152,82554.0,82553.0,0.1519045]
[1744366664849,0.5479152,82554.0,82553.0,0.1519045]
[1744366666353,0.0606056,82557.0,82553.0,0.1519045]
[1744366666545,0.121201,82556.0,82555.0,0.1818008]
[1744366668055,0.121201,82556.0,82555.0,0.0606007]
[1744366668255,0.1818149,82551.0,82550.0,0.121206]
[1744366668561,0.1818149,82551.0,82550.0,0.1818096]
[1744366669760,0.2453149,82551.0,82550.0,0.1818096]
[1744366670950,0.0606005,82556.0,82550.0,0.0606036]
[1744366671256,0.2452034,82556.0,82555.0,0.1212016]
[1744366671456,0.1818061,82554.0,82553.0,0.1212039]
[1744366671960,0.1818171,82549.0,82548.0,0.1212111]
[1744366672754,0.0606042,82551.0,82548.0,0.0606058]
[1744366672947,0.0606042,82551.0,82550.0,0.1212089]
[1744366673352,4e-05,82551.0,82550.0,0.1518089]
[1744366674059,0.1212474,82551.0,82550.0,0.1518089]
[1744366676563,0.1211474,82551.0,82550.0,0.1518089]
[1744366680062,0.0606018,82554.0,82553.0,0.1212045]
[1744366680263,5.401e-05,82555.0,82554.0,0.121203]
[1744366680465,5.401e-05,82555.0,82554.0,0.152903]
[1744366680655,0.1212006,82556.0,82555.0,0.1212016]
[1744366680855,0.1533986,82557.0,82556.0,0.1212001]
[1744366681056,0.1211986,82557.0,82556.0,0.1529001]
[1744366681564,0.1840986,82557.0,82556.0,0.1529001]
[1744366681867,0.1841386,82557.0,82556.0,0.1529001]
[1744366682765,0.1841386,82557.0,82556.0,0.1212001]
[1744366686165,0.1212016,82555.0,82554.0,0.0606015]
[1744366686467,0.06294,82557.0,82556.0,0.1212001]
[1744366686861,0.06294,82557.0,82556.0,0.1535001]
[1744366688462,4e-05,82557.0,82556.0,0.1535001]
[1744366688663,9.842e-05,82564.0,82563.0,0.1211898]
[1744366688870,9.842e-05,82564.0,82563.0,0.4819898]
[1744366689066,0.3608,82576.0,82570.0,0.1211796]
[1744366689266,7.291e-05,82574.0,82573.0,0.1211752]
[1744366690365,0.03197291,82574.0,82573.0,0.1211752]
[1744366690568,0.15314661,82574.0,82573.0,0.1211752]
[1744366692675,0.03197291,82574.0,82573.0,0.1211752]
[1744366693072,0.06307291,82574.0,82573.0,0.1211752]
[1744366693267,7.291e-05,82574.0,82573.0,0.1211752]
[1744366693468,7.291e-05,82574.0,82573.0,0.1853752]
[1744366693676,0.4819708,82576.0,82575.0,0.1211722]
[1744366693973,0.5121708,82576.0,82575.0,0.1211722]
[1744366694174,0.5443708,82576.0,82575.0,0.1535722]
[1744366695477,0.0324,82577.0,82576.0,0.1211708]
[1744366695772,0.0324,82577.0,82576.0,0.1856708]
[1744366695974,0.097,82577.0,82576.0,0.1856708]
[1744366696170,0.01274131,82578.0,82577.0,0.1211693]
[1744366696371,1e-08,82588.0,82587.0,0.1211546]
[1744366696768,4.001e-05,82588.0,82587.0,0.1211546]
[1744366696973,0.12119311,82588.0,82587.0,0.1856546]
[1744366697571,4.001e-05,82588.0,82587.0,0.1856546]
[1744366698667,1e-08,82588.0,82587.0,0.1856546]
[1744366698871,1e-08,82588.0,82587.0,0.4356546]
[1744366699073,0.10005401,82600.0,82587.0,0.4356546]
[1744366699074,0.1,82600.0,82599.0,0.121137]
[1744366699673,0.1,82600.0,82599.0,0.181837]
[1744366699870,0.2211355,82600.0,82599.0,0.0302]
[1744366700075,0.1,82600.0,82599.0,0.151337]
[1744366700777,0.10004,82600.0,82599.0,0.151337]
[1744366701379,0.16064,82600.0,82599.0,0.151337]
[1744366706583,0.10004,82600.0,82599.0,0.151337]
[1744366706787,0.10004,82600.0,82599.0,0.181737]
[1744366708581,0.046785,82600.0,82599.0,0.589937]
[1744366709087,0.046745,82600.0,82599.0,0.181737]
[1744366709284,0.0004,82602.0,82601.0,0.1211341]
[1744366709489,0.0004,82602.0,82601.0,0.1826341]
[1744366709783,0.0605541,82619.0,82601.0,0.1826341]
[1744366709784,0.3608,82638.0,82625.0,0.1210989]
[1744366709988,0.0605499,82625.0,82610.0,0.3608]
[1744366710186,0.5424747,82617.0,82616.0,0.0605553]
[1744366710488,0.1816747,82617.0,82616.0,0.0605553]
[1744366710687,0.1816747,82617.0,82616.0,0.0924553]
[1744366710986,0.0605571,82617.0,82616.0,0.1231553]
[1744366711489,0.1237571,82617.0,82616.0,0.13233426]
[1744366711675,0.4819085,82619.0,82618.0,0.1211092]
[1744366712287,0.5150085,82619.0,82618.0,0.1211092]
[1744366712888,0.5472085,82619.0,82618.0,0.1540092]
[1744366713484,0.4819085,82619.0,82618.0,0.1856092]
[1744366714081,0.4819085,82619.0,82618.0,0.1540092]
[1744366714282,0.5472085,82619.0,82618.0,0.1540092]
[1744366715788,0.5150085,82619.0,82618.0,0.1540092]
[1744366715988,0.5150085,82619.0,82618.0,0.1853092]
[1744366717995,0.5150085,82619.0,82618.0,0.0329]
[1744366718191,0.5467085,82619.0,82618.0,0.1540092]
[1744366718384,0.5467085,82619.0,82618.0,0.0329]
[1744366718584,0.5467085,82619.0,82618.0,0.1540092]
[1744366718993,0.5467085,82619.0,82618.0,0.1857092]
[1744366719686,0.3608,82619.0,82618.0,0.1857092]
[1744366719994,0.0605531,82620.0,82619.0,0.1816579]
[1744366720199,0.4213531,82620.0,82619.0,0.2452579]
[1744366721290,0.1816923,82625.0,82624.0,0.1211004]
[1744366721594,0.1816523,82625.0,82624.0,0.1211004]
[1744366721795,0.1816923,82625.0,82624.0,0.1850004]
[1744366722092,0.2447923,82625.0,82624.0,0.1850004]
[1744366722497,0.1236901,82625.0,82624.0,0.1850004]
[1744366722995,0.1842389,82625.0,82624.0,0.1850004]
[1744366723292,0.1531389,82625.0,82624.0,0.1850004]
[1744366723601,4e-05,82625.0,82624.0,0.1850004]
[1744366723797,0.01237833,82626.0,82625.0,0.1210989]
[1744366724286,0.01237833,82626.0,82625.0,0.1859989]
[1744366724488,0.00044,82626.0,82625.0,0.1859989]
[1744366725082,0.03234,82626.0,82625.0,0.1859989]
[1744366725285,0.00044,82626.0,82625.0,0.1859989]
[1744366725486,0.00044,82626.0,82625.0,0.1541989]
[1744366725685,0.09524,82626.0,82625.0,0.1541989]
[1744366725887,0.1816652,82618.0,82617.0,0.1211077]
[1744366726084,0.1211072,82620.0,82619.0,0.1211062]
[1744366726285,0.0605515,82623.0,82622.0,0.1211033]
[1744366727293,0.0605515,82623.0,82622.0,0.1535033]
[1744366727495,0.1530007,82625.0,82624.0,0.1211004]
[1744366727894,0.1530007,82625.0,82624.0,0.1812004]
[1744366728697,0.1530007,82625.0,82624.0,0.1512004]
[1744366729106,0.1530007,82625.0,82624.0,0.0301]
[1744366729404,0.1211077,82619.0,82618.0,0.36720363]
[1744366729596,0.4819077,82619.0,82618.0,0.36720363]
[1744366729796,0.5139077,82619.0,82618.0,0.33710363]
[1744366730391,0.5139077,82619.0,82618.0,0.1211092]
[1744366730794,0.5139077,82619.0,82618.0,0.1512092]
[1744366730997,0.5139077,82619.0,82618.0,0.1211092]
[1744366733807,0.5139077,82619.0,82618.0,0.1531092]
[1744366736100,0.4819077,82619.0,82618.0,0.1531092]
[1744366736302,0.5149077,82619.0,82618.0,0.1531092]
[1744366736599,0.5149477,82619.0,82618.0,0.1411092]
[1744366737006,0.1541477,82619.0,82618.0,0.1411092]
[1744366737206,0.5149477,82619.0,82618.0,0.1411092]
[1744366738210,0.1816744,82614.0,82610.0,0.032]
[1744366738508,0.1816744,82614.0,82613.0,0.0637]
[1744366739910,0.1816744,82614.0,82613.0,0.2453689]
[1744366742005,0.1816744,82614.0,82613.0,0.0317]
[1744366742203,0.1816744,82614.0,82611.0,0.0605598]
[1744366742204,0.1211185,82612.0,82611.0,0.0605598]
[1744366742718,0.1529185,82612.0,82611.0,0.0605598]
[1744366743410,0.1529185,82612.0,82611.0,0.27624755]
[1744366744896,0.5137185,82612.0,82611.0,0.21568775]
[1744366746708,0.1211215,82610.0,82609.0,0.00018164]
[1744366747105,0.1519215,82610.0,82609.0,0.12130454]
[1744366747307,0.1519615,82610.0,82609.0,0.12130454]
[1744366749805,0.1519615,82610.0,82609.0,0.15230454]
[1744366750811,4e-05,82610.0,82609.0,0.15230454]
[1744366751013,0.3608,82620.0,82618.0,0.1816631]
[1744366751308,0.4213534,82620.0,82619.0,0.031]
[1744366751705,0.0605516,82623.0,82622.0,0.1816521]
[1744366751910,0.2086595,82625.0,82624.0,0.1211009]
[1744366752416,0.2086995,82625.0,82624.0,0.1211009]
[1744366753107,0.1211395,82625.0,82624.0,0.1211009]
[1744366754307,4e-05,82625.0,82624.0,0.1211009]
[1744366754505,0.01231101,82627.0,82625.0,0.1210996]
[1744366756797,0.00044,82626.0,82625.0,0.1531996]
[1744366757812,0.00044,82626.0,82625.0,0.1831996]
[1744366760612,0.0004,82626.0,82625.0,0.1831996]
[1744366760810,0.00044,82626.0,82625.0,0.1831996]
[1744366763615,0.0004,82650.0,82649.0,0.1210643]
[1744366764311,0.0004,82650.0,82649.0,0.1843643]
[1744366764502,0.13347537,82650.0,82649.0,0.1843643]
[1744366764910,0.19751537,82650.0,82649.0,0.1535643]
[1744366765308,1e-07,82650.0,82649.0,0.42456243]
[1744366765606,0.3608,82692.0,82673.0,0.1210292]
[1744366765806,0.01942684,82700.0,82699.0,0.1209911]
[1744366766008,0.01942684,82700.0,82699.0,0.4817911]
[1744366766201,0.14045654,82700.0,82699.0,0.85176658]
[1744366766407,0.01946684,82700.0,82699.0,0.85176658]
[1744366766601,0.01946684,82700.0,82699.0,0.8425911]
[1744366766818,1e-08,82700.0,82699.0,0.85145407]
[1744366767209,0.02,82723.0,82699.0,0.73046297]
[1744366767411,0.02,82723.0,82721.0,0.842559]
[1744366767714,0.02,82723.0,82706.0,0.3608]
[1744366768019,0.1209794,82707.0,82706.0,0.3608]
[1744366768203,0.1210014,82693.0,82691.0,0.3608]
[1744366768410,0.0604985,82695.0,82694.0,0.1209985]
[1744366768622,0.2680124,82699.0,82698.0,0.1209927]
[1744366768917,0.3608,82720.0,82710.0,0.0604866]
[1744366769217,0.1209705,82715.0,82714.0,0.1209668]
[1744366769419,0.1209728,82713.0,82712.0,0.1209712]
[1744366769604,0.11772,82719.0,82706.0,0.00018142]
[1744366769809,0.0604868,82711.0,82706.0,0.00018142]
[1744366770011,0.2134662,82710.0,82709.0,0.1209765]
[1744366770217,0.0924882,82710.0,82709.0,0.1209765]
[1744366770419,0.032,82710.0,82709.0,0.1209765]
[1744366770711,0.120975,82710.0,82709.0,0.1209765]
[1744366770912,4e-05,82710.0,82709.0,0.1814647]
[1744366771117,0.1209703,82714.0,82713.0,0.1209706]
[1744366771417,0.1209703,82714.0,82713.0,0.4212847]
[1744366772115,9.842e-05,82740.0,82714.0,0.6048456]
[1744366772417,9.842e-05,82740.0,82739.0,0.3608]
[1744366772616,0.1209314,82740.0,82739.0,0.3608]
[1744366772913,0.1209714,82740.0,82739.0,0.3608]
[1744366773219,4e-05,82740.0,82739.0,0.4817329]
[1744366773517,0.0908,82749.0,82745.0,0.120924]
[1744366773711,0.0317,82748.0,82745.0,0.481724]
[1744366775817,0.00044,82746.0,82745.0,0.481724]
[1744366776016,0.0004,82746.0,82745.0,0.481724]
[1744366776217,0.00044,82746.0,82745.0,0.481724]
[1744366778511,0.0004,82746.0,82745.0,0.514524]
[1744366778706,0.00044,82746.0,82745.0,0.3608]
[1744366778910,0.3713618,82746.0,82745.0,0.261]
[1744366779716,0.1213618,82746.0,82745.0,0.261]
[1744366780306,0.1213618,82746.0,82745.0,0.3819233]
[1744366780511,0.1213218,82746.0,82745.0,0.3819233]
[1744366780714,0.1213618,82746.0,82745.0,0.3819233]
[1744366781714,0.1213618,82746.0,82745.0,0.261]
[1744366781912,0.1209423,82732.0,82722.0,0.0604782]
[1744366782107,0.45156,82732.0,82704.0,0.0604909]
[1744366782310,0.4817605,82720.0,82719.0,0.1209613]
[1744366782720,0.0604813,82718.0,82715.0,0.1209663]
[1744366782920,0.1209606,82720.0,82719.0,0.1209613]
[1744366783614,0.2117206,82720.0,82719.0,0.1209613]
[1744366784017,0.1209627,82718.0,82717.0,0.0604814]
[1744366784315,0.00018088,82728.0,82727.0,0.1209496]
[1744366784521,0.12112898,82728.0,82727.0,0.4817496]
[1744366784706,0.00022088,82728.0,82727.0,0.4817496]
[1744366785116,0.00018088,82728.0,82727.0,0.4817496]
[1744366785814,0.03188088,82728.0,82727.0,0.4817496]
[1744366786009,0.03192088,82728.0,82727.0,0.4817496]
[1744366786212,8e-08,82728.0,82727.0,0.4817496]
[1744366786412,4.008e-05,82728.0,82727.0,0.7950496]
[1744366786613,8e-08,82728.0,82727.0,0.5450496]
[1744366786813,4.008e-05,82728.0,82727.0,0.5450496]
[1744366787730,0.0309,82738.0,82737.0,0.120935]
[1744366787910,0.0309,82738.0,82737.0,0.481735]
[1744366788312,0.03094,82738.0,82737.0,0.481735]
[1744366789511,0.1518735,82738.0,82737.0,0.481735]
[1744366789711,0.1518735,82738.0,82737.0,0.3608]
[1744366790507,0.1518735,82738.0,82737.0,0.481735]
[1744366790508,0.1518335,82738.0,82737.0,0.481735]
[1744366790712,0.1518735,82738.0,82737.0,0.481735]
[1744366791417,0.05740533,82738.0,82737.0,0.481735]
[1744366792721,0.05740533,82738.0,82737.0,0.3608]
[1744366794517,0.09050533,82738.0,82737.0,0.3608]
[1744366795518,0.09046533,82738.0,82737.0,0.3608]
[1744366795722,0.0331,82738.0,82737.0,0.3608]
[1744366796028,0.0331,82738.0,82737.0,0.481735]
[1744366796226,0.0317,82739.0,82738.0,0.1209335]
[1744366796419,0.0317,82739.0,82738.0,0.1528335]
[1744366796727,0.03174,82739.0,82738.0,0.1528335]
[1744366796927,0.0317,82739.0,82738.0,0.1528335]
[1744366797422,0.03174,82739.0,82738.0,0.1209335]
[1744366797623,0.03174,82739.0,82738.0,0.1528335]
[1744366797823,5.401e-05,82757.0,82738.0,0.29808192]
[1744366798025,0.0004,82770.0,82763.0,0.0604479]
[1744366798228,0.0631,82770.0,82769.0,0.4816882]
[1744366798924,0.1839867,82770.0,82769.0,0.4816882]
[1744366799123,0.0318,82770.0,82769.0,0.4816882]
[1744366799429,0.1526867,82770.0,82769.0,0.4816882]
[1744366799927,0.1527267,82770.0,82769.0,0.4816882]
[1744366800627,0.1527267,82770.0,82769.0,0.3608]
[1744366801029,0.1527267,82770.0,82769.0,0.4816882]
[1744366801428,0.03184,82770.0,82769.0,0.5135882]
[1744366801628,0.0318,82770.0,82769.0,0.5135882]
[1744366801829,0.1527267,82770.0,82769.0,0.5135882]
[1744366802028,0.0004,82770.0,82769.0,0.5135882]
[1744366802233,0.00044,82770.0,82769.0,0.5446882]
[1744366803537,0.0004,82770.0,82769.0,0.5446882]
[1744366803733,0.00044,82770.0,82769.0,0.5446882]
[1744366804334,0.0604364,82780.0,82769.0,0.5446882]
[1744366804335,0.1,82788.0,82787.0,0.1208619]
[1744366804530,0.2208605,82788.0,82787.0,0.4816619]
[1744366804735,0.2209005,82788.0,82787.0,0.4816619]
[1744366805331,0.2209005,82788.0,82787.0,0.3927]
[1744366805738,0.2830005,82788.0,82787.0,0.3608]
[1744366805934,0.01213024,82798.0,82787.0,0.3608]
[1744366806137,0.11,82800.0,82799.0,0.1208444]
[1744366806334,0.1704215,82800.0,82799.0,0.3608]
[1744366807129,0.2961429,82800.0,82799.0,0.4816444]
[1744366807537,0.2961829,82800.0,82799.0,0.3608]
[1744366807836,0.2961829,82800.0,82799.0,0.4816444]
[1744366808538,0.2961829,82800.0,82799.0,0.3608]
[1744366809239,0.1208605,82788.0,82787.0,0.5420914]
[1744366809436,0.0604274,82792.0,82789.0,0.0604288]
[1744366809633,0.0327,82791.0,82790.0,0.1208575]
[1744366810140,0.1535561,82791.0,82790.0,0.1208575]
[1744366810640,0.1535561,82791.0,82790.0,0.1508575]
[1744366811840,0.1535961,82791.0,82790.0,0.1508575]
[1744366812140,0.11,82800.0,82799.0,0.1208444]
[1744366812440,0.2308429,82800.0,82799.0,0.4816444]
[1744366812832,0.11,82800.0,82799.0,0.4816444]
[1744366813842,0.2308829,82800.0,82799.0,0.3608]
[1744366814144,0.11004,82800.0,82799.0,0.4816444]
[1744366814337,0.14194,82800.0,82799.0,0.4816444]
[1744366814543,0.11004,82800.0,82799.0,0.5135444]
[1744366815642,0.11,82800.0,82799.0,0.5135444]
[1744366815946,0.11004,82800.0,82799.0,0.5135444]
[1744366817248,0.11004,82800.0,82799.0,0.3608]
[1744366817249,0.2308829,82800.0,82799.0,0.3608]
[1744366817747,0.2923829,82800.0,82799.0,0.3608]
[1744366818146,0.2923429,82800.0,82799.0,0.3608]
[1744366818343,0.2923829,82800.0,82799.0,0.3608]
[1744366818644,0.14154,82800.0,82799.0,0.4816444]
[1744366819058,0.2623829,82800.0,82799.0,0.4816444]
[1744366819254,0.14154,82800.0,82799.0,0.4816444]
[1744366819548,0.1415,82800.0,82799.0,0.4816444]
[1744366819747,0.11004,82800.0,82799.0,0.5126444]
[1744366819949,5.401e-05,82815.0,82814.0,0.1208225]
[1744366820148,0.0604051,82823.0,82817.0,0.1208181]
[1744366820449,0.1208211,82815.0,82814.0,0.3608]
[1744366820648,0.1208211,82815.0,82814.0,0.4816204]
[1744366820848,0.1841211,82815.0,82814.0,0.4816204]
[1744366821149,0.1841211,82815.0,82814.0,0.3608]
[1744366821348,0.1208327,82808.0,82807.0,0.4816314]
[1744366821746,0.1812327,82808.0,82807.0,0.4816314]
[1744366821942,0.1812327,82808.0,82807.0,0.3608]
[1744366822355,0.1812327,82808.0,82807.0,0.4816327]
[1744366822754,0.1812727,82808.0,82807.0,0.4816327]
[1744366823254,0.0604,82808.0,82807.0,0.4816327]
[1744366823440,0.03044,82808.0,82807.0,0.4816327]
[1744366823646,0.03,82812.0,82811.0,0.1208269]
[1744366824046,0.1508254,82812.0,82811.0,0.1208269]
[1744366824449,4e-05,82812.0,82811.0,0.1208269]
[1744366824650,0.0301,82817.0,82816.0,0.1208196]
[1744366824846,0.0301,82817.0,82816.0,0.5138196]
[1744366825046,0.0628,82817.0,82816.0,0.5138196]
[1744366825448,0.060402,82827.0,82820.0,0.0604062]
[1744366825649,0.1509101,82824.0,82823.0,0.1208094]
[1744366825844,0.1208101,82824.0,82823.0,0.4816094]
[1744366826052,0.1509101,82824.0,82823.0,0.4816094]
[1744366826652,0.0301,82824.0,82823.0,0.4816094]
[1744366826854,0.0301,82824.0,82823.0,0.5139094]
[1744366827659,0.0604011,82828.0,82825.0,0.1208065]
[1744366827957,0.0324,82830.0,82829.0,0.1208006]
[1744366828145,0.1531992,82830.0,82829.0,0.1208006]
[1744366828545,0.0324,82830.0,82829.0,0.1208006]
[1744366828854,0.0643,82830.0,82829.0,0.1208006]
[1744366829054,0.0643,82830.0,82829.0,0.1515006]
[1744366829249,0.06434,82830.0,82829.0,0.1515006]
[1744366829456,0.0643,82830.0,82829.0,0.1515006]
[1744366829753,0.0643,82830.0,82829.0,0.1208006]
[1744366830160,0.06434,82830.0,82829.0,0.1515006]
[1744366830355,4e-05,82830.0,82829.0,0.1515006]
[1744366830564,0.0319,82839.0,82838.0,0.1207875]
[1744366830761,0.075788,82839.0,82838.0,0.4815875]
[1744366831058,0.075788,82839.0,82838.0,0.5122875]
[1744366832361,0.075828,82839.0,82838.0,0.5122875]
[1744366832563,0.1966141,82839.0,82838.0,0.4815875]
[1744366833455,0.1966141,82839.0,82838.0,0.3608]
[1744366833854,0.1966141,82839.0,82838.0,0.4815875]
[1744366834460,0.011928,82839.0,82838.0,0.4815875]
[1744366834666,0.0004,82842.0,82841.0,0.1207831]
[1744366835364,0.01276762,82842.0,82841.0,0.1207831]
[1744366835560,0.033,82849.0,82843.0,0.0603898]
[1744366835760,0.1845715,82849.0,82848.0,0.4815729]
[1744366835959,0.19665554,82849.0,82848.0,0.4815729]
[1744366837358,0.07588404,82849.0,82848.0,0.4815729]
[1744366837765,0.19669554,82849.0,82848.0,0.4815729]
[1744366838155,5.401e-05,82856.0,82855.0,0.1207627]
[1744366838460,0.0308,82858.0,82857.0,0.1207598]
[1744366838765,0.0317,82866.0,82862.0,0.0603759]
[1744366838954,0.0317,82866.0,82865.0,0.4815482]
[1744366839149,0.0004,82866.0,82865.0,0.4815482]
[1744366839353,0.2167278,82879.0,82878.0,0.1207292]
[1744366839560,0.1207278,82879.0,82878.0,0.1207292]
[1744366839759,7.291e-05,82881.0,82880.0,0.1207263]
[1744366839957,0.12079771,82881.0,82880.0,0.1207263]
[1744366840259,0.12079771,82881.0,82879.0,0.0311]
[1744366840260,0.1207263,82880.0,82879.0,0.1207278]
[1744366840463,0.1207292,82879.0,82878.0,0.120728]
[1744366840961,0.1207292,82879.0,82878.0,0.151528]
[1744366841161,0.1207292,82879.0,82878.0,0.120728]
[1744366841363,0.1207692,82879.0,82878.0,0.120728]
[1744366841663,0.1207692,82879.0,82878.0,0.151528]
[1744366842055,0.03154,82879.0,82878.0,0.151528]
[1744366842466,0.060366,82877.0,82865.0,0.3608]
[1744366842657,0.1207394,82871.0,82865.0,0.3608]
[1744366842856,0.1207394,82871.0,82869.0,0.120742]
[1744366843059,0.1207394,82871.0,82870.0,0.2052009]
[1744366843964,0.1207423,82869.0,82865.0,0.4211736]
[1744366844156,0.1207465,82868.0,82867.0,0.1207402]
[1744366844462,0.1207452,82867.0,82866.0,0.4815467]
[1744366844660,0.1207452,82867.0,82866.0,0.3608]
[1744366844864,0.1841452,82867.0,82866.0,0.4815467]
[1744366845061,0.0634,82867.0,82856.0,0.36098107]
[1744366845267,0.1207598,82857.0,82856.0,0.36098107]
[1744366846367,0.1861598,82857.0,82856.0,0.31108107]
[1744366846765,0.1861598,82857.0,82856.0,0.43184237]
[1744366847160,0.1861998,82857.0,82856.0,0.31108107]
[1744366847869,0.1207998,82857.0,82856.0,0.43184237]
[1744366848062,0.1536598,82857.0,82856.0,0.43184237]
[1744366848262,0.1536998,82857.0,82856.0,0.43184237]
[1744366848760,0.03294,82857.0,82856.0,0.43184237]
[1744366849158,4e-05,82857.0,82856.0,0.43184237]
[1744366849363,4e-05,82857.0,82856.0,0.49344237]
[1744366849570,0.096,82860.0,82859.0,0.1207569]
[1744366849868,0.2167554,82860.0,82859.0,0.1207569]
[1744366850470,0.1207598,82857.0,82856.0,0.49344207]
[1744366850667,0.1207535,82862.0,82856.0,0.49344207]
[1744366850668,0.00018032,82865.0,82862.0,0.0603762]
[1744366850974,0.12092852,82865.0,82864.0,0.4815496]
[1744366851270,0.00018032,82865.0,82864.0,0.4815496]
[1744366851472,0.00018032,82865.0,82864.0,0.5442496]
[1744366851960,0.00022032,82865.0,82864.0,0.5442496]
[1744366852163,0.12096852,82865.0,82864.0,0.5129496]
[1744366852565,0.12092852,82865.0,82864.0,0.5129496]
[1744366853158,0.12096852,82865.0,82864.0,0.5129496]
[1744366853567,0.12092852,82865.0,82864.0,0.5129496]
[1744366853767,0.12096852,82865.0,82864.0,0.5129496]
[1744366854771,0.12096852,82865.0,82864.0,0.3608]
[1744366855176,0.12096852,82865.0,82864.0,0.4815496]
[1744366855775,0.12096852,82865.0,82864.0,0.3608]
[1744366856670,0.18446852,82865.0,82864.0,0.3608]
[1744366857068,0.0603835,82853.0,82850.0,0.1207691]
[1744366857267,0.1207686,82851.0,82850.0,0.1207691]
[1744366857674,0.1842686,82851.0,82850.0,0.1207691]
[1744366857975,0.0635,82851.0,82850.0,0.1207691]
[1744366858877,0.06354,82851.0,82850.0,0.1207691]
[1744366859081,0.03294,82851.0,82850.0,0.1533691]
[1744366859379,0.1537086,82851.0,82850.0,0.1533691]
[1744366859579,0.03294,82851.0,82850.0,0.1533691]
[1744366859975,0.1537086,82851.0,82850.0,0.1533691]
[1744366860176,0.1537086,82851.0,82850.0,0.0326]
[1744366860380,0.1207715,82849.0,82848.0,0.36098107]
[1744366860781,0.1840715,82849.0,82848.0,0.36098107]
[1744366860981,0.1840715,82849.0,82848.0,0.48175397]
[1744366861276,0.1841115,82849.0,82848.0,0.48175397]
[1744366861474,0.1841115,82849.0,82848.0,0.51435397]
[1744366861874,0.16386,82849.0,82848.0,0.51435397]
[1744366862077,0.0633,82849.0,82848.0,0.51435397]
[1744366862381,4e-05,82849.0,82848.0,0.54675397]
[1744366862681,0.2443531,82855.0,82854.0,0.1207642]
[1744366862981,0.2443531,82855.0,82854.0,0.1522642]
[1744366863172,0.0632,82855.0,82848.0,0.44547107]
[1744366863376,0.1207715,82849.0,82848.0,0.44547107]
[1744366863578,0.1207875,82838.0,82832.0,0.3608]
[1744366863772,0.1207875,82838.0,82834.0,0.1207928]
[1744366863972,0.8026875,82838.0,82832.0,0.3608]
[1744366864186,0.9134875,82838.0,82831.0,0.28804476]
[1744366864778,0.120789,82837.0,82836.0,0.21319797]
[1744366864968,0.489489,82837.0,82836.0,0.21319797]
[1744366865173,0.1207992,82830.0,82829.0,0.28822583]
[1744366865375,0.5900192,82830.0,82829.0,0.28822583]
[1744366865580,0.8400192,82830.0,82829.0,0.28822583]
[1744366865968,0.9004192,82830.0,82829.0,0.21770363]
[1744366866277,0.9004192,82830.0,82822.0,0.00046]
[1744366866278,0.1208094,82823.0,82822.0,0.00046]
[1744366866489,0.0604095,82817.0,82810.0,0.4294668]
[1744366866680,0.0536269,82811.0,82810.0,0.4294668]
[1744366866880,0.1541469,82811.0,82810.0,0.4294668]
[1744366867277,0.1541469,82811.0,82810.0,0.08846836]
[1744366867482,0.2157469,82811.0,82810.0,0.08846836]
[1744366867978,0.1208386,82803.0,82802.0,0.00018107]
[1744366868285,0.1208386,82803.0,82799.0,0.3608]
[1744366868286,0.1208429,82800.0,82799.0,0.3608]
[1744366868985,0.4895429,82800.0,82799.0,0.3608]
[1744366869178,0.3687,82800.0,82799.0,0.4816444]
[1744366869377,0.5901029,82800.0,82799.0,0.4816444]
[1744366869575,0.5901429,82800.0,82799.0,0.3608]
[1744366870384,0.4895829,82800.0,82799.0,0.3608]
[1744366870582,0.36874,82800.0,82799.0,0.3608]
[1744366870774,0.36874,82800.0,82799.0,0.4816444]
[1744366870775,4e-05,82800.0,82799.0,0.4816444]
[1744366871177,0.25283782,82810.0,82809.0,0.1208298]
[1744366871373,0.0321,82810.0,82809.0,0.1208298]
[1744366871883,0.10785291,82814.0,82813.0,0.120824]
[1744366872184,0.10785291,82814.0,82813.0,0.481624]